[Event "*** SCC Grand Prix: Titled Tuesday Blitz"]
[Site "Chess.com"]
[Date "2020.10.06"]
[Round "3"]
[White "killer311"]
[Black "GMJustin"]
[Result "0-1"]
[WhiteElo "2421"]
[BlackElo "2262"]
[TimeControl "180+1"]
[EndTime "10:26:56 PDT"]
[Termination "GMJustin won by checkmate"]

1. d4 {[%clk 0:03:00.9]} 1... d5 {[%clk 0:02:48.4]} 2. c4 {[%clk 0:03:00.7]}
2... c5 {[%clk 0:02:48.3]} 3. cxd5 {[%clk 0:02:58.1]} 3... Qxd5 {[%clk
0:02:43.7]} 4. Nf3 {[%clk 0:02:56.4]} 4... cxd4 {[%clk 0:02:39.9]} 5. Qxd4
{[%clk 0:02:56]} 5... Nf6 {[%clk 0:02:34.3]} 6. Nc3 {[%clk 0:02:52.3]} 6... Qxd4
{[%clk 0:02:32.7]} 7. Nxd4 {[%clk 0:02:53.2]} 7... a6 {[%clk 0:02:25.6]} 8. g3
{[%clk 0:02:52.9]} 8... e5 {[%clk 0:02:24.5]} 9. Nf3 {[%clk 0:02:50.8]} 9... Nc6
{[%clk 0:02:12.7]} 10. Bg2 {[%clk 0:02:50.5]} 10... Bb4 {[%clk 0:02:06]} 11. O-O
{[%clk 0:02:49.5]} 11... Bxc3 {[%clk 0:01:46.7]} 12. bxc3 {[%clk 0:02:50.4]}
12... Be6 {[%clk 0:01:47.3]} 13. Ba3 {[%clk 0:02:44.2]} 13... O-O-O {[%clk
0:01:40.4]} 14. Ng5 {[%clk 0:02:44]} 14... Bc4 {[%clk 0:01:40.2]} 15. Rfd1
{[%clk 0:02:31.7]} 15... h6 {[%clk 0:01:32.3]} 16. Ne4 {[%clk 0:02:24.6]} 16...
Nxe4 {[%clk 0:01:22]} 17. Bxe4 {[%clk 0:02:25.5]} 17... Bxe2 {[%clk 0:01:16.7]}
18. Re1 {[%clk 0:02:23.3]} 18... Bc4 {[%clk 0:00:57.8]} 19. Bxc6 {[%clk
0:02:18.8]} 19... bxc6 {[%clk 0:00:57.5]} 20. Rxe5 {[%clk 0:02:19.4]} 20... Rhe8
{[%clk 0:00:53.2]} 21. Rae1 {[%clk 0:02:18]} 21... Rxe5 {[%clk 0:00:47.6]} 22.
Rxe5 {[%clk 0:02:18.9]} 22... Bxa2 {[%clk 0:00:45.8]} 23. Bc5 {[%clk 0:02:04.5]}
23... Rd1+ {[%clk 0:00:32.3]} 24. Kg2 {[%clk 0:02:03.3]} 24... a5 {[%clk
0:00:29.5]} 25. Re7 {[%clk 0:01:58.4]} 25... a4 {[%clk 0:00:26.5]} 26. Ra7
{[%clk 0:01:57.7]} 26... Bd5+ {[%clk 0:00:20.8]} 27. Kh3 {[%clk 0:01:57.7]}
27... Be6+ {[%clk 0:00:19.4]} 28. g4 {[%clk 0:01:54.4]} 28... Rd3+ {[%clk
0:00:14.7]} 29. Kg2 {[%clk 0:01:51]} 29... Rxc3 {[%clk 0:00:14.1]} 30. Bd4
{[%clk 0:01:50.5]} 30... Rc4 {[%clk 0:00:13.8]} 31. Bxg7 {[%clk 0:01:50.5]}
31... Rxg4+ {[%clk 0:00:13.7]} 32. Kf3 {[%clk 0:01:50.9]} 32... Rxg7 {[%clk
0:00:13.9]} 33. Rxa4 {[%clk 0:01:51.5]} 33... Rg5 {[%clk 0:00:13.9]} 34. Rh4
{[%clk 0:01:51.4]} 34... Rf5+ {[%clk 0:00:13.7]} 35. Ke2 {[%clk 0:01:51.4]}
35... h5 {[%clk 0:00:14.1]} 36. f4 {[%clk 0:01:50.9]} 36... c5 {[%clk
0:00:14.4]} 37. Ke3 {[%clk 0:01:51.8]} 37... Kd7 {[%clk 0:00:14.4]} 38. Ke4
{[%clk 0:01:52.4]} 38... Kd6 {[%clk 0:00:14.4]} 39. Rh3 {[%clk 0:01:52.8]} 39...
Rd5 {[%clk 0:00:13.4]} 40. Re3 {[%clk 0:01:52.4]} 40... c4 {[%clk 0:00:10.7]}
41. Rc3 {[%clk 0:01:51.4]} 41... Bf5+ {[%clk 0:00:10.6]} 42. Ke3 {[%clk
0:01:51.2]} 42... Rd3+ {[%clk 0:00:11.3]} 43. Rxd3+ {[%clk 0:01:51.8]} 43...
cxd3 {[%clk 0:00:11.6]} 44. h4 {[%clk 0:01:52.7]} 44... Kd5 {[%clk 0:00:11.5]}
45. Kd2 {[%clk 0:01:53.6]} 45... Ke4 {[%clk 0:00:11.4]} 46. Kc3 {[%clk
0:01:53.5]} 46... Kxf4 {[%clk 0:00:11]} 47. Kd2 {[%clk 0:01:54.4]} 47... Kg4
{[%clk 0:00:11.2]} 48. Kd1 {[%clk 0:01:55.3]} 48... Kxh4 {[%clk 0:00:10.7]} 49.
Kd2 {[%clk 0:01:56.2]} 49... Kg3 {[%clk 0:00:10.8]} 50. Kd1 {[%clk 0:01:57.1]}
50... h4 {[%clk 0:00:10.2]} 51. Kd2 {[%clk 0:01:58]} 51... h3 {[%clk 0:00:10.5]}
52. Kd1 {[%clk 0:01:58.9]} 52... h2 {[%clk 0:00:09.9]} 53. Kd2 {[%clk
0:01:59.8]} 53... h1=N {[%clk 0:00:09.6]} 54. Kd1 {[%clk 0:02:00.7]} 54... Nf2+
{[%clk 0:00:09.1]} 55. Kd2 {[%clk 0:02:01.6]} 55... Kf3 {[%clk 0:00:09.1]} 56.
Kc3 {[%clk 0:02:01.3]} 56... Ke3 {[%clk 0:00:04.7]} 57. Kb4 {[%clk 0:02:00.5]}
57... d2 {[%clk 0:00:05]} 58. Kc5 {[%clk 0:02:01.4]} 58... d1=Q {[%clk 0:00:05]}
59. Kc6 {[%clk 0:02:02.3]} 59... Kd4 {[%clk 0:00:04.7]} 60. Kc7 {[%clk
0:02:03.2]} 60... Ne4 {[%clk 0:00:04.6]} 61. Kd8 {[%clk 0:02:04.1]} 61... Ke5+
{[%clk 0:00:04.9]} 62. Ke8 {[%clk 0:02:05]} 62... Qa4+ {[%clk 0:00:04.6]} 63.
Kf8 {[%clk 0:02:05.9]} 63... Qa7 {[%clk 0:00:04.3]} 64. Kg7 {[%clk 0:02:06.8]}
64... f6+ {[%clk 0:00:04.4]} 65. Kh6 {[%clk 0:02:07.7]} 65... Qh7# {[%clk
0:00:03.4]} 0-1

[Event "*** SCC Grand Prix: Titled Tuesday Blitz"]
[Site "Chess.com"]
[Date "2020.10.06"]
[Round "3"]
[White "ARTHURMOTIVATOR"]
[Black "lacafi"]
[Result "1-0"]
[WhiteElo "2324"]
[BlackElo "2093"]
[TimeControl "180+1"]
[EndTime "10:26:56 PDT"]
[Termination "ARTHURMOTIVATOR won on time"]

1. e4 {[%clk 0:03:00.9]} 1... c6 {[%clk 0:02:59.9]} 2. d4 {[%clk 0:02:59.9]}
2... d5 {[%clk 0:03:00.3]} 3. exd5 {[%clk 0:02:59.1]} 3... cxd5 {[%clk
0:03:00.2]} 4. Bd3 {[%clk 0:03:00]} 4... Nf6 {[%clk 0:02:58.9]} 5. h3 {[%clk
0:02:56.2]} 5... Nc6 {[%clk 0:02:57.4]} 6. c3 {[%clk 0:02:54.7]} 6... g6 {[%clk
0:02:51.8]} 7. Nf3 {[%clk 0:02:53.8]} 7... Bg7 {[%clk 0:02:51.8]} 8. O-O {[%clk
0:02:53.9]} 8... O-O {[%clk 0:02:51.6]} 9. Re1 {[%clk 0:02:54.4]} 9... a6 {[%clk
0:02:51.1]} 10. Na3 {[%clk 0:02:50]} 10... b5 {[%clk 0:02:50.4]} 11. Nc2 {[%clk
0:02:49.6]} 11... Bf5 {[%clk 0:02:43.2]} 12. Bf1 {[%clk 0:02:48.2]} 12... Rc8
{[%clk 0:02:21.7]} 13. Ne3 {[%clk 0:02:46.1]} 13... Bd7 {[%clk 0:02:21]} 14. Ne5
{[%clk 0:02:38.9]} 14... Be8 {[%clk 0:02:06.4]} 15. Bd3 {[%clk 0:02:36.6]} 15...
Nxe5 {[%clk 0:01:56]} 16. dxe5 {[%clk 0:02:35.1]} 16... Ne4 {[%clk 0:01:55.8]}
17. Ng4 {[%clk 0:02:27.5]} 17... Nc5 {[%clk 0:01:46.4]} 18. Bc2 {[%clk
0:02:22.8]} 18... h5 {[%clk 0:01:40.7]} 19. Nh6+ {[%clk 0:02:21.5]} 19... Kh8
{[%clk 0:01:35.2]} 20. g4 {[%clk 0:02:10.6]} 20... Qd7 {[%clk 0:01:02.1]} 21.
Qf3 {[%clk 0:02:02.1]} 21... h4 {[%clk 0:00:38.2]} 22. g5 {[%clk 0:01:54.4]}
22... Qe6 {[%clk 0:00:17.8]} 23. Nf5 {[%clk 0:01:38.1]} 23... Nd7 {[%clk
0:00:15.8]} 24. Nxg7 {[%clk 0:01:27.7]} 24... Kxg7 {[%clk 0:00:16.7]} 25. Bf4
{[%clk 0:01:27.3]} 25... Rh8 {[%clk 0:00:15.1]} 26. Rad1 {[%clk 0:01:24.7]}
26... Nf8 {[%clk 0:00:14.1]} 27. Bb3 {[%clk 0:01:21.4]} 27... Bc6 {[%clk
0:00:13.5]} 28. Bxd5 {[%clk 0:01:18.7]} 28... Bxd5 {[%clk 0:00:11.9]} 29. Rxd5
{[%clk 0:01:15.8]} 29... Nd7 {[%clk 0:00:10.8]} 30. Red1 {[%clk 0:01:08.9]}
30... Nb6 {[%clk 0:00:10.9]} 31. R5d3 {[%clk 0:01:08.3]} 31... Nc4 {[%clk
0:00:10.6]} 32. Qe2 {[%clk 0:00:48.4]} 32... Qf5 {[%clk 0:00:08.5]} 33. Rf3
{[%clk 0:00:48.5]} 33... Rh5 {[%clk 0:00:03.9]} 34. b3 {[%clk 0:00:47.3]} 34...
Nb6 {[%clk 0:00:01.6]} 35. Be3 {[%clk 0:00:41.7]} 1-0

[Event "*** SCC Grand Prix: Titled Tuesday Blitz"]
[Site "Chess.com"]
[Date "2020.10.06"]
[Round "3"]
[White "KyrgyzFighter"]
[Black "Obito24"]
[Result "1-0"]
[WhiteElo "2401"]
[BlackElo "2554"]
[TimeControl "180+1"]
[EndTime "10:26:58 PDT"]
[Termination "KyrgyzFighter won on time"]

1. c4 {[%clk 0:03:00.9]} 1... Nf6 {[%clk 0:02:59.2]} 2. Nc3 {[%clk 0:03:00.7]}
2... e5 {[%clk 0:02:58.5]} 3. Nf3 {[%clk 0:03:00.1]} 3... Nc6 {[%clk 0:02:53.6]}
4. e3 {[%clk 0:02:59.8]} 4... Bb4 {[%clk 0:02:53.2]} 5. Qc2 {[%clk 0:02:59.4]}
5... O-O {[%clk 0:02:53.2]} 6. Nd5 {[%clk 0:02:58.8]} 6... a5 {[%clk 0:02:52.4]}
7. a3 {[%clk 0:02:55.1]} 7... Bc5 {[%clk 0:02:46.8]} 8. Ng5 {[%clk 0:02:54.1]}
8... g6 {[%clk 0:02:37.6]} 9. h4 {[%clk 0:02:52.9]} 9... h5 {[%clk 0:02:22.8]}
10. Bd3 {[%clk 0:02:34.9]} 10... Kg7 {[%clk 0:01:54.5]} 11. b3 {[%clk
0:02:30.8]} 11... d6 {[%clk 0:01:43.8]} 12. Bb2 {[%clk 0:02:17.8]} 12... Nxd5
{[%clk 0:01:34.6]} 13. cxd5 {[%clk 0:02:15.6]} 13... Ne7 {[%clk 0:01:30.8]} 14.
f4 {[%clk 0:01:56]} 14... f6 {[%clk 0:01:20.4]} 15. fxe5 {[%clk 0:01:52.5]}
15... fxe5 {[%clk 0:01:19.7]} 16. O-O-O {[%clk 0:01:43.4]} 16... Rf6 {[%clk
0:00:58.5]} 17. Ne4 {[%clk 0:01:17.5]} 17... Nxd5 {[%clk 0:00:51.8]} 18. Nxf6
{[%clk 0:01:16.6]} 18... Nxf6 {[%clk 0:00:52.2]} 19. Bxg6 {[%clk 0:01:10.7]}
19... Bg4 {[%clk 0:00:50.6]} 20. Rdf1 {[%clk 0:01:09.7]} 20... Qe7 {[%clk
0:00:49.9]} 21. Bf5 {[%clk 0:01:00.1]} 21... d5 {[%clk 0:00:33.1]} 22. Bxg4
{[%clk 0:00:56.9]} 22... Nxg4 {[%clk 0:00:31.6]} 23. Rf5 {[%clk 0:00:48.7]}
23... Qd6 {[%clk 0:00:03.5]} 24. Rg5+ {[%clk 0:00:47.8]} 24... Kh6 {[%clk
0:00:03.9]} 25. Rf1 {[%clk 0:00:43.5]} 25... Bxa3 {[%clk 0:00:02.6]} 26. Rff5
{[%clk 0:00:33]} 26... Bxb2+ {[%clk 0:00:01.6]} 27. Kxb2 {[%clk 0:00:33.9]}
27... Nf6 {[%clk 0:00:01.3]} 28. Rxe5 {[%clk 0:00:32.6]} 1-0

[Event "*** SCC Grand Prix: Titled Tuesday Blitz"]
[Site "Chess.com"]
[Date "2020.10.06"]
[Round "3"]
[White "Skatchkov_V"]
[Black "Kassimov_B"]
[Result "0-1"]
[WhiteElo "2580"]
[BlackElo "2422"]
[TimeControl "180+1"]
[EndTime "10:26:59 PDT"]
[Termination "Kassimov_B won by checkmate"]

1. d4 {[%clk 0:03:00.7]} 1... Nf6 {[%clk 0:02:14.4]} 2. c4 {[%clk 0:03:00.4]}
2... b6 {[%clk 0:02:14.6]} 3. Nf3 {[%clk 0:03:00.5]} 3... e6 {[%clk 0:02:14.5]}
4. g3 {[%clk 0:03:01]} 4... Bb7 {[%clk 0:02:14.9]} 5. Bg2 {[%clk 0:03:01.4]}
5... Bb4+ {[%clk 0:02:13.8]} 6. Bd2 {[%clk 0:03:01.5]} 6... Be7 {[%clk 0:02:14]}
7. O-O {[%clk 0:02:59.9]} 7... O-O {[%clk 0:02:13.8]} 8. Nc3 {[%clk 0:02:45.1]}
8... c6 {[%clk 0:02:09.5]} 9. e4 {[%clk 0:02:42.2]} 9... d5 {[%clk 0:02:03.9]}
10. e5 {[%clk 0:02:42.5]} 10... Ne4 {[%clk 0:01:58.2]} 11. cxd5 {[%clk
0:02:34.5]} 11... cxd5 {[%clk 0:01:49.6]} 12. Re1 {[%clk 0:02:23.9]} 12... Nxc3
{[%clk 0:01:40.2]} 13. bxc3 {[%clk 0:02:20.8]} 13... Nc6 {[%clk 0:01:39.9]} 14.
h4 {[%clk 0:02:07.7]} 14... Na5 {[%clk 0:01:37.1]} 15. Bg5 {[%clk 0:02:06.9]}
15... h6 {[%clk 0:01:35.1]} 16. Bxe7 {[%clk 0:02:07]} 16... Qxe7 {[%clk
0:01:36]} 17. Qd3 {[%clk 0:01:48.1]} 17... Rac8 {[%clk 0:01:33.9]} 18. g4 {[%clk
0:01:45.1]} 18... Qa3 {[%clk 0:01:28.9]} 19. Rac1 {[%clk 0:01:36.5]} 19... g6
{[%clk 0:01:10.7]} 20. Qe3 {[%clk 0:01:18.4]} 20... Kh7 {[%clk 0:01:06.2]} 21.
Bf1 {[%clk 0:01:12.5]} 21... Nc4 {[%clk 0:01:03]} 22. Qf4 {[%clk 0:01:12.8]}
22... Qe7 {[%clk 0:00:44.9]} 23. Bd3 {[%clk 0:01:10.6]} 23... Kg7 {[%clk
0:00:44.9]} 24. Kg2 {[%clk 0:00:54.7]} 24... f6 {[%clk 0:00:38.8]} 25. exf6+
{[%clk 0:00:36.7]} 25... Rxf6 {[%clk 0:00:37.8]} 26. Qg3 {[%clk 0:00:37.1]}
26... Rcf8 {[%clk 0:00:37.4]} 27. Ne5 {[%clk 0:00:28.3]} 27... Rxf2+ {[%clk
0:00:34.9]} 28. Qxf2 {[%clk 0:00:28.1]} 28... Rxf2+ {[%clk 0:00:35.8]} 29. Kxf2
{[%clk 0:00:29]} 29... Qxh4+ {[%clk 0:00:36]} 30. Kg2 {[%clk 0:00:22.2]} 30...
Nxe5 {[%clk 0:00:34.1]} 31. dxe5 {[%clk 0:00:15.4]} 31... d4+ {[%clk 0:00:34.5]}
32. Kg1 {[%clk 0:00:10.6]} 32... Qg3+ {[%clk 0:00:33.8]} 33. Kf1 {[%clk
0:00:10.7]} 33... Qg2# {[%clk 0:00:33.7]} 0-1

[Event "*** SCC Grand Prix: Titled Tuesday Blitz"]
[Site "Chess.com"]
[Date "2020.10.06"]
[Round "3"]
[White "GameOverBro"]
[Black "underthebridge1999"]
[Result "1-0"]
[WhiteElo "2503"]
[BlackElo "2260"]
[TimeControl "180+1"]
[EndTime "10:26:59 PDT"]
[Termination "GameOverBro won by resignation"]

1. e4 {[%clk 0:03:00.9]} 1... c5 {[%clk 0:02:59.6]} 2. Ne2 {[%clk 0:03:00.4]}
2... Nc6 {[%clk 0:02:59.1]} 3. Nbc3 {[%clk 0:03:00.3]} 3... e6 {[%clk
0:02:58.8]} 4. g3 {[%clk 0:02:58.8]} 4... g6 {[%clk 0:02:57.2]} 5. d4 {[%clk
0:02:58.1]} 5... cxd4 {[%clk 0:02:56.5]} 6. Nxd4 {[%clk 0:02:59]} 6... d5 {[%clk
0:02:30.8]} 7. exd5 {[%clk 0:02:50.1]} 7... exd5 {[%clk 0:02:30.1]} 8. Bg2
{[%clk 0:02:42.7]} 8... Nge7 {[%clk 0:02:28.4]} 9. O-O {[%clk 0:02:32.9]} 9...
Bg7 {[%clk 0:02:27.8]} 10. Be3 {[%clk 0:02:26.7]} 10... O-O {[%clk 0:02:26.9]}
11. Re1 {[%clk 0:02:25.3]} 11... h6 {[%clk 0:02:11.8]} 12. Qd2 {[%clk
0:02:24.7]} 12... Kh7 {[%clk 0:02:11]} 13. Rad1 {[%clk 0:02:25.2]} 13... f5
{[%clk 0:02:07.2]} 14. Nde2 {[%clk 0:02:19.4]} 14... Be6 {[%clk 0:01:53]} 15.
Nf4 {[%clk 0:02:18.4]} 15... Bf7 {[%clk 0:01:51.3]} 16. Ncxd5 {[%clk 0:01:57.5]}
16... Nxd5 {[%clk 0:01:43.3]} 17. Nxd5 {[%clk 0:01:55.7]} 17... Ne5 {[%clk
0:01:36.7]} 18. b3 {[%clk 0:01:49]} 18... Rb8 {[%clk 0:01:22.1]} 19. Bf4 {[%clk
0:01:44.5]} 19... Re8 {[%clk 0:01:17.6]} 20. h4 {[%clk 0:01:37.7]} 20... Rc8
{[%clk 0:01:15.4]} 21. c4 {[%clk 0:01:37.1]} 21... Nc6 {[%clk 0:00:32.3]} 22. h5
{[%clk 0:01:06.7]} 22... g5 {[%clk 0:00:18.5]} 23. Be3 {[%clk 0:01:06.7]} 23...
Bxh5 {[%clk 0:00:17.8]} 24. Qc2 {[%clk 0:00:55.1]} 24... Ne5 {[%clk 0:00:16.1]}
25. Qxf5+ {[%clk 0:00:44.7]} 25... Bg6 {[%clk 0:00:16.2]} 26. Qh3 {[%clk
0:00:42.5]} 26... Qa5 {[%clk 0:00:16.6]} 27. Ne7 {[%clk 0:00:37.8]} 27... Rxe7
{[%clk 0:00:09.9]} 28. Qxc8 {[%clk 0:00:37]} 28... Qxa2 {[%clk 0:00:09.3]} 29.
Qc5 {[%clk 0:00:29.4]} 29... Rf7 {[%clk 0:00:08.9]} 30. Qxa7 {[%clk 0:00:23.2]}
30... Ng4 {[%clk 0:00:08]} 31. Qxa2 {[%clk 0:00:22.5]} 31... Nxe3 {[%clk
0:00:07.6]} 32. Rxe3 {[%clk 0:00:21.9]} 1-0

[Event "*** SCC Grand Prix: Titled Tuesday Blitz"]
[Site "Chess.com"]
[Date "2020.10.06"]
[Round "3"]
[White "AlexSuv"]
[Black "ZverevLev"]
[Result "1/2-1/2"]
[WhiteElo "2506"]
[BlackElo "2335"]
[TimeControl "180+1"]
[EndTime "10:27:00 PDT"]
[Termination "Game drawn by repetition"]

1. d4 {[%clk 0:02:55.4]} 1... Nf6 {[%clk 0:02:59]} 2. c4 {[%clk 0:02:55]} 2...
e6 {[%clk 0:02:58.7]} 3. Nc3 {[%clk 0:02:54]} 3... Bb4 {[%clk 0:02:57.3]} 4. e3
{[%clk 0:02:54.6]} 4... O-O {[%clk 0:02:52.3]} 5. Bd2 {[%clk 0:02:55]} 5... d5
{[%clk 0:02:49.6]} 6. Nf3 {[%clk 0:02:52.6]} 6... b6 {[%clk 0:02:45]} 7. cxd5
{[%clk 0:02:51.8]} 7... exd5 {[%clk 0:02:41.1]} 8. Rc1 {[%clk 0:02:52.2]} 8...
Bb7 {[%clk 0:02:40.7]} 9. Bd3 {[%clk 0:02:49.9]} 9... Nbd7 {[%clk 0:02:40.1]}
10. Ne5 {[%clk 0:02:27.9]} 10... h6 {[%clk 0:02:34]} 11. O-O {[%clk 0:02:27.1]}
11... Bxc3 {[%clk 0:02:29.1]} 12. Bxc3 {[%clk 0:02:19.1]} 12... Nxe5 {[%clk
0:02:28.8]} 13. dxe5 {[%clk 0:02:18.8]} 13... Ne4 {[%clk 0:02:28.1]} 14. Bxe4
{[%clk 0:02:06.4]} 14... dxe4 {[%clk 0:02:24.2]} 15. Qg4 {[%clk 0:02:07]} 15...
Qe7 {[%clk 0:02:13.9]} 16. Rfd1 {[%clk 0:01:58.2]} 16... Rad8 {[%clk 0:02:11.9]}
17. a3 {[%clk 0:01:45.6]} 17... Rxd1+ {[%clk 0:01:53.6]} 18. Rxd1 {[%clk
0:01:46.5]} 18... Rd8 {[%clk 0:01:53.8]} 19. Rxd8+ {[%clk 0:01:39.3]} 19... Qxd8
{[%clk 0:01:54.3]} 20. e6 {[%clk 0:01:39.5]} 20... f6 {[%clk 0:01:51.6]} 21. h4
{[%clk 0:01:35]} 21... Qe7 {[%clk 0:01:45.9]} 22. Qf4 {[%clk 0:01:08.1]} 22...
Bd5 {[%clk 0:01:34.4]} 23. Kh2 {[%clk 0:00:55.9]} 23... Qd6 {[%clk 0:01:25.1]}
24. Kg3 {[%clk 0:00:51.1]} 24... Bxe6 {[%clk 0:01:21.7]} 25. Qxd6 {[%clk
0:00:48]} 25... cxd6 {[%clk 0:01:22.6]} 26. Kf4 {[%clk 0:00:48.6]} 26... d5
{[%clk 0:01:22]} 27. Bd4 {[%clk 0:00:39.9]} 27... g5+ {[%clk 0:01:17.9]} 28.
hxg5 {[%clk 0:00:39.6]} 28... hxg5+ {[%clk 0:01:18.6]} 29. Kg3 {[%clk
0:00:40.3]} 29... Kf7 {[%clk 0:01:18.9]} 30. f3 {[%clk 0:00:36.7]} 30... exf3
{[%clk 0:01:17.4]} 31. gxf3 {[%clk 0:00:37.6]} 31... Kg6 {[%clk 0:01:14.3]} 32.
Kg2 {[%clk 0:00:37]} 32... g4 {[%clk 0:01:11.8]} 33. fxg4 {[%clk 0:00:35.9]}
33... Bxg4 {[%clk 0:01:11]} 34. Kg3 {[%clk 0:00:36.8]} 34... Kf5 {[%clk
0:01:05.3]} 35. Bxf6 {[%clk 0:00:19.6]} 35... Kxf6 {[%clk 0:01:04.6]} 36. Kxg4
{[%clk 0:00:19.7]} 36... Ke5 {[%clk 0:01:05.2]} 37. Kf3 {[%clk 0:00:20]} 37...
d4 {[%clk 0:01:02.6]} 38. Ke2 {[%clk 0:00:20.5]} 38... Ke4 {[%clk 0:00:59.1]}
39. exd4 {[%clk 0:00:20.7]} 39... Kxd4 {[%clk 0:01:00]} 40. Kd2 {[%clk
0:00:21.6]} 40... Kc4 {[%clk 0:00:59.8]} 41. Kc2 {[%clk 0:00:21.9]} 41... b5
{[%clk 0:01:00.1]} 42. b3+ {[%clk 0:00:22.3]} 42... Kc5 {[%clk 0:01:00.2]} 43.
Kc3 {[%clk 0:00:23.2]} 43... a5 {[%clk 0:00:58.1]} 44. b4+ {[%clk 0:00:22.9]}
44... axb4+ {[%clk 0:00:57.7]} 45. axb4+ {[%clk 0:00:23.8]} 45... Kd5 {[%clk
0:00:58]} 46. Kd3 {[%clk 0:00:24.2]} 46... Ke5 {[%clk 0:00:58.1]} 47. Ke3 {[%clk
0:00:24.8]} 47... Kd5 {[%clk 0:00:58.1]} 48. Kd3 {[%clk 0:00:25.4]} 48... Ke5
{[%clk 0:00:57.9]} 49. Ke3 {[%clk 0:00:26]} 49... Kd5 {[%clk 0:00:58]} 50. Kd3
{[%clk 0:00:26.6]} 1/2-1/2

[Event "*** SCC Grand Prix: Titled Tuesday Blitz"]
[Site "Chess.com"]
[Date "2020.10.06"]
[Round "3"]
[White "FLamps8"]
[Black "Abdimalik_Abdisalimov"]
[Result "0-1"]
[WhiteElo "2509"]
[BlackElo "2755"]
[TimeControl "180+1"]
[EndTime "10:27:01 PDT"]
[Termination "Abdimalik_Abdisalimov won by resignation"]

1. d4 {[%clk 0:03:00.9]} 1... Nf6 {[%clk 0:02:57.8]} 2. c4 {[%clk 0:03:00.1]}
2... g6 {[%clk 0:02:57.7]} 3. Nc3 {[%clk 0:03:00.1]} 3... Bg7 {[%clk 0:02:57.5]}
4. e4 {[%clk 0:03:00.6]} 4... O-O {[%clk 0:02:56.6]} 5. Be2 {[%clk 0:02:58.6]}
5... d6 {[%clk 0:02:56.6]} 6. Bg5 {[%clk 0:02:59.1]} 6... c5 {[%clk 0:02:54.7]}
7. d5 {[%clk 0:02:58.8]} 7... b5 {[%clk 0:02:54.7]} 8. cxb5 {[%clk 0:02:53.1]}
8... a6 {[%clk 0:02:54.7]} 9. bxa6 {[%clk 0:02:28.6]} 9... Bxa6 {[%clk
0:02:49.7]} 10. Bxa6 {[%clk 0:02:27.4]} 10... Nxa6 {[%clk 0:02:50.6]} 11. Qe2
{[%clk 0:02:25.1]} 11... Qa5 {[%clk 0:02:22.3]} 12. Bd2 {[%clk 0:02:14.3]} 12...
Rfb8 {[%clk 0:02:20.1]} 13. Rb1 {[%clk 0:01:47.3]} 13... Nb4 {[%clk 0:02:18.3]}
14. Nf3 {[%clk 0:01:39.3]} 14... Nc2+ {[%clk 0:01:56.9]} 15. Kf1 {[%clk
0:01:33.1]} 15... Nd4 {[%clk 0:01:56.3]} 16. Qd3 {[%clk 0:01:24.2]} 16... Nd7
{[%clk 0:01:35]} 17. a4 {[%clk 0:01:07.4]} 17... Nxf3 {[%clk 0:01:31.3]} 18.
gxf3 {[%clk 0:01:04.4]} 18... Ne5 {[%clk 0:01:23.9]} 19. Qe2 {[%clk 0:01:03.9]}
19... c4 {[%clk 0:01:23.4]} 20. Kg2 {[%clk 0:00:51.9]} 20... Nd3 {[%clk
0:01:21.5]} 21. h4 {[%clk 0:00:26.1]} 21... Nxb2 {[%clk 0:01:11]} 22. Nd1 {[%clk
0:00:15.6]} 22... Qxa4 {[%clk 0:00:53.5]} 23. Be3 {[%clk 0:00:04.8]} 23... c3
{[%clk 0:00:39.9]} 24. Nxb2 {[%clk 0:00:04.2]} 24... Rxb2 {[%clk 0:00:40.8]} 25.
Rxb2 {[%clk 0:00:03.8]} 25... cxb2 {[%clk 0:00:41.7]} 26. Rb1 {[%clk 0:00:03.7]}
26... Qa1 {[%clk 0:00:37.8]} 27. Qc2 {[%clk 0:00:03.6]} 27... Qxb1 {[%clk
0:00:32.5]} 28. Qxb1 {[%clk 0:00:04.5]} 28... Ra1 {[%clk 0:00:32.8]} 29. Qc2
{[%clk 0:00:05]} 29... b1=Q {[%clk 0:00:33.7]} 30. Qc8+ {[%clk 0:00:05.4]} 30...
Bf8 {[%clk 0:00:33.4]} 31. Bh6 {[%clk 0:00:05.8]} 31... Qh1+ {[%clk 0:00:33.7]}
32. Kg3 {[%clk 0:00:06.3]} 32... Rg1+ {[%clk 0:00:34.2]} 33. Kf4 {[%clk
0:00:06.9]} 33... Qxh4+ {[%clk 0:00:34.5]} 34. Ke3 {[%clk 0:00:07.8]} 0-1

[Event "*** SCC Grand Prix: Titled Tuesday Blitz"]
[Site "Chess.com"]
[Date "2020.10.06"]
[Round "3"]
[White "ErikRonka"]
[Black "MarceloPlaya"]
[Result "1-0"]
[WhiteElo "2445"]
[BlackElo "2250"]
[TimeControl "180+1"]
[EndTime "10:27:01 PDT"]
[Termination "ErikRonka won by resignation"]

1. e4 {[%clk 0:03:00.9]} 1... e6 {[%clk 0:01:46.7]} 2. d4 {[%clk 0:02:59.9]}
2... d5 {[%clk 0:01:46.1]} 3. Nc3 {[%clk 0:03:00.3]} 3... Bb4 {[%clk 0:01:43.5]}
4. e5 {[%clk 0:03:00.8]} 4... c5 {[%clk 0:01:42.3]} 5. a3 {[%clk 0:03:01.3]}
5... Bxc3+ {[%clk 0:01:41.1]} 6. bxc3 {[%clk 0:03:02.2]} 6... Ne7 {[%clk
0:01:41.1]} 7. Qg4 {[%clk 0:03:01]} 7... Qc7 {[%clk 0:01:39.8]} 8. Qxg7 {[%clk
0:02:59.7]} 8... Rg8 {[%clk 0:01:38.3]} 9. Qxh7 {[%clk 0:03:00]} 9... cxd4
{[%clk 0:01:37.8]} 10. Qd3 {[%clk 0:03:00.5]} 10... dxc3 {[%clk 0:01:32.7]} 11.
Nf3 {[%clk 0:02:59]} 11... Nbc6 {[%clk 0:01:30.2]} 12. Qxc3 {[%clk 0:02:52.7]}
12... Bd7 {[%clk 0:01:29.8]} 13. Bf4 {[%clk 0:02:38]} 13... Rc8 {[%clk
0:01:28.1]} 14. Bg3 {[%clk 0:02:23.9]} 14... Nf5 {[%clk 0:01:23.7]} 15. Bd3
{[%clk 0:02:19.5]} 15... d4 {[%clk 0:01:18.1]} 16. Qb2 {[%clk 0:02:01.1]} 16...
Nxg3 {[%clk 0:01:14.8]} 17. hxg3 {[%clk 0:02:02]} 17... Nxe5 {[%clk 0:01:14.5]}
18. Qxd4 {[%clk 0:01:57.5]} 18... Nxf3+ {[%clk 0:01:08.5]} 19. gxf3 {[%clk
0:01:58.4]} 19... Qa5+ {[%clk 0:01:06.8]} 20. Kf1 {[%clk 0:01:50.2]} 20... Bc6
{[%clk 0:01:05.6]} 21. Be4 {[%clk 0:01:39]} 21... Bxe4 {[%clk 0:00:57.6]} 22.
Qxe4 {[%clk 0:01:33.4]} 22... Qd2 {[%clk 0:00:53.7]} 23. Qa4+ {[%clk 0:01:20.8]}
23... Kf8 {[%clk 0:00:50]} 24. Qb4+ {[%clk 0:01:18.9]} 24... Qxb4 {[%clk
0:00:49.3]} 25. axb4 {[%clk 0:01:19.8]} 25... a6 {[%clk 0:00:47.8]} 26. Ra2
{[%clk 0:01:14.7]} 26... Rc4 {[%clk 0:00:45.4]} 27. Rb2 {[%clk 0:01:09.6]} 27...
Ke7 {[%clk 0:00:40.8]} 28. Ke2 {[%clk 0:01:00.6]} 28... Rgc8 {[%clk 0:00:37.8]}
29. Rc1 {[%clk 0:00:58.9]} 29... Kd6 {[%clk 0:00:29.1]} 30. f4 {[%clk 0:00:52]}
30... Kc6 {[%clk 0:00:28]} 31. Kd3 {[%clk 0:00:49.5]} 31... Kb5 {[%clk
0:00:27.1]} 32. c3 {[%clk 0:00:47.9]} 32... Rd8+ {[%clk 0:00:25.5]} 33. Kc2
{[%clk 0:00:47.9]} 33... Rc6 {[%clk 0:00:22]} 34. Kb3 {[%clk 0:00:47]} 34... Rd3
{[%clk 0:00:21]} 35. Re2 {[%clk 0:00:39.9]} 35... b6 {[%clk 0:00:19.3]} 36. Re5+
{[%clk 0:00:38.6]} 36... Rd5 {[%clk 0:00:17.6]} 37. c4+ {[%clk 0:00:37.1]} 1-0